[Event "1000GM Spring Break Schev-A 2024"]
[Site "San Jose"]
[Date "2024.04.01"]
[Round "4.1"]
[White "Jimenez Garcia, Emmanuel"]
[Black "Rajaram, Rohan"]
[Result "1/2-1/2"]
[ECO "D12"]
[WhiteElo "2421"]
[BlackElo "2198"]
[Annotator "RC"]
[PlyCount "163"]
[EventDate "2024.03.28"]
[EventType "schev"]
[EventCountry "USA"]
[SourceTitle "playchess.com"]
[Source "ChessBase"]
[SourceQuality "1"]
[TimeControl "5400+30"]

1. c4 {[%emt 0:01:36]} c6 {[%emt 0:00:28]} 2. Nf3 {[%emt 0:03:36]} Nf6 {[%emt 0:00:36]} 3. d4 {[%emt 0:01:06]} d5 {[%emt 0:00:07]} 4. e3 {[%emt 0:00:15]} Bf5 {[%emt 0:00:24]} 5. Nc3 {[%emt 0:00:21]} e6 {[%emt 0:00:09]} 6. Nh4 {[%emt 0:01:39]} Be4 {[%emt 0:00:14]} 7. f3 {[%emt 0:00:51]} Bg6 {[%emt 0:00:13]} 8. Qb3 {[%emt 0:00:46]} Qc7 {[%emt 0:00:27]} 9. Nxg6 {[%emt 0:06:45]} hxg6 {[%emt 0:00:11]} 10. g3 {[%emt 0:00:35]} Be7 {[%emt 0:02:54]} 11. Bd2 {[%emt 0:06:42]} Nbd7 {[%emt 0:03:24]} 12. Kf2 {[%emt 0:21:38]} Rc8 {[%emt 0:12:32]} 13. Rc1 {[%emt 0:02:18]} dxc4 {[%emt 0:04:30]} 14. Bxc4 {[%emt 0:00:16]} Nb6 {[%emt 0:05:06]} 15. Be2 {[%emt 0:01:18]} a6 {[%emt 0:07:43]} 16. e4 {[%emt 0:10:11]} Nbd7 {[%emt 0:06:28]} 17. e5 {[%emt 0:03:43]} Nd5 {[%emt 0:00:35]} 18. Nxd5 {[%emt 0:00:12]} exd5 {[%emt 0:00:06]} 19. f4 {[%emt 0:00:38]} Nf8 {[%emt 0:09:00]} 20. Bg4 {[%emt 0:03:44]} Ne6 {[%emt 0:02:11]} 21. Qd3 {[%emt 0:03:30]} Qd7 {[%emt 0:06:14]} 22. h4 c5 {[%emt 0:04:53]} 23. Be3 cxd4 {[%emt 0:01:30]} 24. Bxd4 {[%emt 0:25:44]} Rxc1 {[%emt 0:00:30]} 25. Rxc1 {[%emt 0:00:55]} O-O {[%emt 0:32:35]} 26. Rd1 {[%emt 0:01:02]} Rc8 {[%emt 0:00:00]} 27. Kg1 {[%emt 0:02:20]} Qc6 {[%emt 0:00:00]} 28. Bf2 {[%emt 0:00:16]} Rd8 {[%emt 0:00:00]} 29. Bf3 {[%emt 0:00:30]} Nc7 {[%emt 0:00:00]} 30. Kg2 {[%emt 0:00:21]} b6 {[%emt 0:00:00]} 31. Be1 {[%emt 0:01:10]} Qa4 {[%emt 0:00:00]} 32. Qb3 {[%emt 0:00:51]} Qc6 {[%emt 0:00:00]} 33. Qc3 {[%emt 0:00:37]} Qb7 {[%emt 0:00:00]} 34. b4 {[%emt 0:00:50]} Ne6 {[%emt 0:04:30]} 35. Qb3 {[%emt 0:01:44]} Nc7 {[%emt 0:00:00]} 36. Rc1 {[%emt 0:00:00]} Ne6 {[%emt 0:00:00]} 37. Qc3 {[%emt 0:00:00]} Qd7 {[%emt 0:01:30]} 38. Qc6 {[%emt 0:01:30]} a5 {[%emt 0:00:30]} 39. Qxd7 {[%emt 0:00:00]} Rxd7 {[%emt 0:00:00]} 40. bxa5 {[%emt 0:00:04]} bxa5 {[%emt 0:00:00]} 41. a4 {[%emt 0:00:43]} Nc5 {[%emt 0:00:00]} 42. Bxa5 {[%emt 0:00:13]} Nxa4 {[%emt 0:00:00]} 43. Rd1 {[%emt 0:00:35]} Nb2 {[%emt 0:00:00]} 44. Rxd5 {[%emt 0:00:08]} Rxd5 {[%emt 0:00:00]} 45. Bxd5 {[%emt 0:00:04]} Nd3 {[%emt 0:00:00]} 46. Kf3 {[%emt 0:00:30]} Nc5 {[%emt 0:00:00]} 47. Be1 {[%emt 0:00:52]} Ne6 {[%emt 0:00:00]} 48. Ke4 {[%emt 0:01:51]} Nc5+ {[%emt 0:00:00]} 49. Kd4 {[%emt 0:00:00]} Ne6+ {[%emt 0:00:00]} 50. Kc4 {[%emt 0:00:00]} Nc7 {[%emt 0:00:00]} 51. Be4 {[%emt 0:00:00]} Ne6 {[%emt 0:00:00]} 52. Kd5 {[%emt 0:00:26]} Nd8 {[%emt 0:00:00]} 53. Ba5 {[%emt 0:00:58]} Kf8 {[%emt 0:00:00]} 54. Bd3 {[%emt 0:00:30]} Ke8 {[%emt 0:00:00]} 55. Bb5+ {[%emt 0:00:08]} Kf8 {[%emt 0:00:00]} 56. Bd7 {[%emt 0:00:11]} Kg8 {[%emt 0:00:00]} 57. Bc7 {[%emt 0:00:38]} Nb7 {[%emt 0:00:00]} 58. Bb6 {[%emt 0:01:07]} Kf8 {[%emt 0:00:00]} 59. Kc6 {[%emt 0:00:25]} Nd8+ {[%emt 0:00:00]} 60. Kc7 {[%emt 0:00:19]} Ne6+ {[%emt 0:00:00]} 61. Kc8 {[%emt 0:00:52]} Bb4 {[%emt 0:11:30]} 62. Bf2 {[%emt 0:01:26]} Nc5 {[%emt 0:00:00]} 63. Bc6 {[%emt 0:00:00]} Ke7 {[%emt 0:00:00]} 64. g4 {[%emt 0:00:11]} Nd3 {[%emt 0:01:30]} 65. Be3 {[%emt 0:00:02]} Bc5 {[%emt 0:00:00]} 66. Bd2 {[%emt 0:00:28]} Nf2 {[%emt 0:00:00]} 67. Bf3 {[%emt 0:00:32]} Nd3 {[%emt 0:00:00]} 68. Kc7 {[%emt 0:00:32]} Bf2 {[%emt 0:00:00]} 69. Be4 {[%emt 0:00:58]} Nc5 {[%emt 0:00:00]} 70. Bd5 {[%emt 0:00:33]} Nd3 {[%emt 0:00:00]} 71. Bc4 {[%emt 0:00:34]} Be1 {[%emt 0:00:00]} 72. Bxe1 {[%emt 0:00:21]} Nxe1 {[%emt 0:00:00]} 73. Bxf7 {[%emt 0:00:14]} Ng2 {[%emt 0:00:00]} 74. Bxg6 {[%emt 0:00:09]} Nxf4 {[%emt 0:00:00]} 75. Bb1 {[%emt 0:01:12]} Ke6 {[%emt 0:01:07]} 76. Kd8 {[%emt 0:01:14]} Kxe5 {[%emt 0:01:00]} 77. Ke7 {[%emt 0:00:00]} Ng2 {[%emt 0:00:23]} 78. h5 {[%emt 0:00:00]} Kf4 {[%emt 0:01:18]} 79. Kf7 {[%emt 0:00:45]} Kxg4 {[%emt 0:01:53]} 80. Bg6 {[%emt 0:00:10]} Nf4 {[%emt 0:00:05]} 81. Kxg7 {[%emt 0:00:04]} Nxh5+ {[%emt 0:00:03]} 82. Bxh5+ {[%emt 0:00:04]} 1/2-1/2

[Event "1000GM Spring Break Schev-A 2024"]
[Site "San Jose"]
[Date "2024.04.01"]
[Round "4.2"]
[White "Zuluaga Mancilla, Cesar"]
[Black "Sivakumar, Shaashwath"]
[Result "0-1"]
[ECO "D23"]
[WhiteElo "2217"]
[BlackElo "2277"]
[Annotator "RC"]
[PlyCount "95"]
[EventDate "2024.03.28"]
[EventType "schev"]
[EventCountry "USA"]
[SourceTitle "playchess.com"]
[Source "ChessBase"]
[SourceQuality "1"]
[TimeControl "5400+30"]

1. d4 {[%emt 0:09:16]} d5 {[%emt 0:00:10]} 2. Nf3 {[%emt 0:00:31]} Nf6 {[%emt 0:00:05]} 3. c4 {[%emt 0:02:32]} c6 {[%emt 0:00:10]} 4. Qc2 {[%emt 0:00:15]} dxc4 {[%emt 0:00:31]} 5. Qxc4 {[%emt 0:00:06]} Bg4 {[%emt 0:00:22]} 6. Nc3 {[%emt 0:04:43]} e6 7. e3 {[%emt 1:16:37]} Nbd7 {[%emt 1:32:42]} 8. Be2 {[%emt 0:00:30]} Be7 {[%emt 0:00:30]} 9. O-O {[%emt 0:00:30]} O-O {[%emt 0:00:30]} 10. Rd1 {[%emt 0:00:30]} Qb8 {[%emt 0:00:30]} 11. h3 {[%emt 0:00:00]} Bh5 12. Bd2 {[%emt 0:01:00]} b5 {[%emt 0:01:00]} 13. Qxc6 {[%emt 0:00:00]} a6 14. Ne5 {[%emt 0:00:00]} Nxe5 {[%emt 0:00:00]} 15. dxe5 {[%emt 0:00:00]} Rc8 {[%emt 0:00:00]} 16. Qxc8+ Qxc8 17. exf6 {[%emt 0:00:00]} Bxe2 {[%emt 0:02:30]} 18. Nxe2 {[%emt 0:00:00]} Bxf6 {[%emt 0:00:00]} 19. Rac1 {[%emt 0:00:00]} Qb7 {[%emt 0:01:00]} 20. Bc3 {[%emt 0:00:00]} Bxc3 {[%emt 0:00:00]} 21. Rxc3 {[%emt 0:00:00]} Rc8 {[%emt 0:00:00]} 22. Rcd3 {[%emt 0:00:00]} g6 {[%emt 0:00:00]} 23. R1d2 {[%emt 0:00:00]} Kg7 {[%emt 0:00:00]} 24. f3 {[%emt 0:00:00]} Rc7 {[%emt 0:00:00]} 25. Kf2 {[%emt 0:00:00]} b4 {[%emt 0:00:00]} 26. Nf4 {[%emt 0:00:00]} Qb5 {[%emt 0:00:00]} 27. h4 {[%emt 0:00:00]} e5 {[%emt 0:00:00]} 28. Nd5 {[%emt 0:00:00]} Rc1 {[%emt 0:00:00]} 29. e4 {[%emt 0:00:00]} Ra1 {[%emt 0:00:00]} 30. Kg3 {[%emt 0:00:00]} Rxa2 {[%emt 0:00:00]} 31. Nc7 {[%emt 0:00:00]} Qc6 {[%emt 0:06:00]} 32. Rd7 {[%emt 0:00:00]} Rxb2 {[%emt 0:00:00]} 33. Rxb2 {[%emt 0:00:00]} Qxd7 {[%emt 0:00:00]} 34. Nxa6 {[%emt 0:00:00]} Qb5 {[%emt 0:00:00]} 35. Nxb4 {[%emt 0:00:00]} f5 {[%emt 0:02:00]} 36. exf5 {[%emt 0:01:22]} gxf5 {[%emt 0:00:00]} 37. Kh3 {[%emt 0:01:09]} e4 {[%emt 0:00:00]} 38. fxe4 {[%emt 0:01:17]} fxe4 {[%emt 0:00:00]} 39. Rb3 {[%emt 0:03:22]} Qc4 {[%emt 0:00:00]} 40. Rb1 {[%emt 0:00:56]} e3 {[%emt 0:00:00]} 41. Kg3 {[%emt 0:00:10]} Qe2 {[%emt 0:00:00]} 42. Rc1 {[%emt 0:02:20]} h5 {[%emt 0:00:00]} 43. Kh2 {[%emt 0:02:45]} Qd2 {[%emt 0:00:00]} 44. Rc7+ {[%emt 0:00:34]} Kf6 {[%emt 0:00:00]} 45. Rc6+ {[%emt 0:00:01]} Kf5 {[%emt 0:00:00]} 46. Nc2 {[%emt 0:03:04]} e2 {[%emt 0:05:30]} 47. Rc5+ {[%emt 0:00:00]} Ke4 {[%emt 0:00:00]} 48. Rc8 {[%emt 0:00:25]} 0-1

[Event "1000GM Spring Break Schev-A 2024"]
[Site "San Jose"]
[Date "2024.04.01"]
[Round "4.3"]
[White "Liu, Patrick"]
[Black "Garcia Guerrero, Isaac Antonio"]
[Result "1-0"]
[ECO "B36"]
[WhiteElo "2068"]
[BlackElo "2300"]
[Annotator "RC"]
[PlyCount "105"]
[EventDate "2024.03.28"]
[EventType "schev"]
[EventCountry "USA"]
[SourceTitle "playchess.com"]
[Source "ChessBase"]
[SourceQuality "1"]
[TimeControl "5400+30"]

1. e4 {[%emt 0:02:25]} c5 {[%emt 0:00:16]} 2. Nf3 {[%emt 0:00:03]} g6 {[%emt 0:00:06]} 3. d4 {[%emt 0:00:22]} cxd4 {[%emt 0:00:06]} 4. Nxd4 {[%emt 0:00:09]} Nc6 {[%emt 0:00:06]} 5. c4 {[%emt 0:00:22]} Nf6 {[%emt 0:00:13]} 6. Nc3 {[%emt 0:00:06]} d6 {[%emt 0:00:07]} 7. Be2 {[%emt 0:00:09]} Nxd4 {[%emt 0:00:07]} 8. Qxd4 {[%emt 0:00:06]} Bg7 {[%emt 0:00:06]} 9. Be3 {[%emt 0:00:17]} O-O {[%emt 0:00:17]} 10. Qd2 {[%emt 0:00:07]} a5 {[%emt 0:00:06]} 11. O-O {[%emt 0:00:23]} a4 {[%emt 0:00:06]} 12. f3 {[%emt 0:01:05]} Qa5 {[%emt 0:00:40]} 13. Rfd1 {[%emt 0:01:54]} Be6 {[%emt 0:00:27]} 14. Rac1 {[%emt 0:01:53]} Rfc8 {[%emt 0:00:25]} 15. Nd5 {[%emt 0:04:14]} Qxd2 {[%emt 0:01:34]} 16. Bxd2 {[%emt 0:01:50]} Bxd5 {[%emt 0:03:58]} 17. cxd5 {[%emt 0:01:17]} Nd7 {[%emt 0:00:43]} 18. Rxc8+ {[%emt 0:01:21]} Rxc8 {[%emt 0:00:07]} 19. Rc1 {[%emt 0:00:03]} Bd4+ {[%emt 0:12:55]} 20. Kf1 {[%emt 0:00:12]} Nc5 {[%emt 0:02:41]} 21. Rc2 {[%emt 0:01:48]} Ra8 {[%emt 0:01:58]} 22. Bb4 {[%emt 0:05:30]} Kf8 {[%emt 0:04:23]} 23. Rc4 {[%emt 0:04:12]} Bxb2 {[%emt 0:05:47]} 24. Bxc5 {[%emt 0:00:14]} dxc5 {[%emt 0:00:13]} 25. Rxc5 {[%emt 0:00:11]} Bd4 {[%emt 0:04:40]} 26. Rc4 {[%emt 0:02:43]} Be5 {[%emt 0:02:59]} 27. Bd1 {[%emt 0:04:47]} b5 {[%emt 0:08:23]} 28. Rb4 {[%emt 0:07:46]} Rb8 {[%emt 0:02:28]} 29. g3 {[%emt 0:05:08]} Bc3 {[%emt 0:05:40]} 30. Rb1 {[%emt 0:00:15]} a3 {[%emt 0:00:22]} 31. Rc1 {[%emt 0:02:22]} b4 {[%emt 0:00:30]} 32. Bb3 {[%emt 0:00:24]} g5 {[%emt 0:01:20]} 33. Ke2 {[%emt 0:01:43]} Rb6 {[%emt 0:02:05]} 34. Rc2 {[%emt 0:00:21]} Rh6 {[%emt 0:05:42]} 35. Ke3 {[%emt 0:52:18]} Ke8 {[%emt 0:01:22]} 36. Rg2 {[%emt 0:00:00]} Kd7 {[%emt 0:00:57]} 37. Kd3 {[%emt 0:00:00]} Kd6 {[%emt 0:09:50]} 38. Rc2 {[%emt 0:00:00]} Rh3 {[%emt 0:00:40]} 39. Rg2 {[%emt 0:00:00]} h5 {[%emt 0:02:01]} 40. Kc4 {[%emt 0:00:00]} h4 {[%emt 0:02:12]} 41. f4 {[%emt 0:00:00]} gxf4 {[%emt 0:01:12]} 42. gxf4 {[%emt 0:00:00]} f6 {[%emt 0:01:15]} 43. e5+ {[%emt 0:00:00]} fxe5 {[%emt 0:00:40]} 44. Rg6+ {[%emt 0:00:00]} Kc7 {[%emt 0:00:48]} 45. Re6 {[%emt 0:00:00]} exf4 {[%emt 0:03:14]} 46. Rxe7+ {[%emt 0:00:00]} Kd8 {[%emt 0:00:06]} 47. d6 {[%emt 0:00:00]} Re3 {[%emt 0:11:47]} 48. Rf7 {[%emt 0:00:00]} Ke8 {[%emt 0:06:15]} 49. d7+ {[%emt 0:00:00]} Kd8 {[%emt 0:00:24]} 50. Ba4 {[%emt 0:00:00]} Kc7 {[%emt 0:00:38]} 51. Rf8 {[%emt 0:00:00]} Re4+ {[%emt 0:00:23]} 52. Kb3 {[%emt 0:00:00]} Rd4 {[%emt 0:00:39]} 53. Rc8+ {[%emt 0:09:00]} 1-0

[Event "1000GM Spring Break Schev-A 2024"]
[Site "San Jose"]
[Date "2024.04.01"]
[Round "4.4"]
[White "Yan, Nathan"]
[Black "Arenas, David"]
[Result "1/2-1/2"]
[ECO "C97"]
[WhiteElo "2185"]
[BlackElo "2368"]
[Annotator "RC"]
[PlyCount "86"]
[EventDate "2024.03.28"]
[EventType "schev"]
[EventCountry "USA"]
[SourceTitle "playchess.com"]
[Source "ChessBase"]
[SourceQuality "1"]
[TimeControl "5400+30"]

1. e4 {[%emt 0:10:40]} e5 {[%emt 0:00:04]} 2. Nf3 {[%emt 0:00:34]} Nc6 {[%emt 0:00:05]} 3. Bb5 {[%emt 0:00:47]} a6 {[%emt 0:00:19]} 4. Ba4 {[%emt 0:00:13]} Nf6 {[%emt 0:00:07]} 5. O-O {[%emt 0:00:09]} Be7 {[%emt 0:00:18]} 6. Re1 {[%emt 0:00:06]} b5 {[%emt 0:00:12]} 7. Bb3 {[%emt 0:00:08]} d6 {[%emt 0:00:05]} 8. c3 {[%emt 0:00:07]} O-O {[%emt 0:00:08]} 9. h3 {[%emt 0:00:04]} Na5 {[%emt 0:00:06]} 10. Bc2 {[%emt 0:00:08]} c5 {[%emt 0:00:04]} 11. d4 {[%emt 0:00:15]} Qc7 {[%emt 0:00:05]} 12. Nbd2 {[%emt 0:00:07]} Be6 {[%emt 0:00:08]} 13. Nf1 {[%emt 0:02:08]} Nc4 {[%emt 0:03:06]} 14. d5 {[%emt 0:02:19]} Bd7 {[%emt 0:00:13]} 15. Ng3 {[%emt 0:05:44]} Rfc8 {[%emt 0:02:28]} 16. b3 {[%emt 0:04:36]} Nb6 {[%emt 0:00:07]} 17. Bg5 {[%emt 0:00:25]} h6 {[%emt 0:00:37]} 18. Be3 {[%emt 0:00:09]} Bf8 {[%emt 0:02:03]} 19. Qd2 {[%emt 0:00:33]} Kh7 {[%emt 0:00:56]} 20. Nh4 {[%emt 0:04:08]} g6 {[%emt 0:02:34]} 21. f4 {[%emt 0:00:58]} exf4 {[%emt 0:01:31]} 22. Bxf4 {[%emt 0:00:19]} Bg7 {[%emt 0:00:18]} 23. Qf2 {[%emt 0:16:54]} Re8 {[%emt 0:09:31]} 24. Nf3 {[%emt 0:03:05]} a5 {[%emt 0:07:50]} 25. Bxd6 {[%emt 0:08:48]} Qxd6 {[%emt 0:01:41]} 26. e5 {[%emt 0:00:10]} Qf8 {[%emt 0:06:26]} 27. exf6 {[%emt 0:01:10]} Bxf6 {[%emt 0:00:33]} 28. Ne4 {[%emt 0:01:36]} Bg7 {[%emt 0:05:58]} 29. Rad1 {[%emt 0:04:01]} Bf5 {[%emt 0:00:38]} 30. d6 {[%emt 0:03:36]} Rac8 {[%emt 0:06:27]} 31. Qd2 {[%emt 0:11:17]} Nd7 {[%emt 0:04:01]} 32. Nh4 {[%emt 0:02:47]} Bxe4 {[%emt 0:00:50]} 33. Bxe4 {[%emt 0:00:21]} b4 {[%emt 0:00:37]} 34. Qc2 {[%emt 0:02:58]} Bxc3 {[%emt 0:11:01]} 35. Bxg6+ {[%emt 0:10:35]} fxg6 {[%emt 0:02:36]} 36. Re7+ {[%emt 0:03:13]} Rxe7 {[%emt 0:00:56]} 37. Nxg6 {[%emt 0:02:05]} Bd4+ {[%emt 0:04:24]} 38. Rxd4 {[%emt 0:01:08]} Re1+ {[%emt 0:00:09]} 39. Kh2 {[%emt 0:00:04]} Rh1+ {[%emt 0:00:16]} 40. Kxh1 {[%emt 0:00:16]} Qf1+ {[%emt 0:00:03]} 41. Kh2 {[%emt 0:00:12]} cxd4 {[%emt 0:00:02]} 42. Qxc8 {[%emt 0:00:30]} Kxg6 {[%emt 0:00:02]} 43. Qxd7 {[%emt 0:00:23]} Qf4+ {[%emt 0:32:25]} 1/2-1/2

[Event "1000GM Spring Break Schev-A 2024"]
[Site "San Jose"]
[Date "2024.04.01"]
[Round "4.5"]
[White "Alarcon Bahamondez, Roberto Ignacio"]
[Black "Tang, Dylan"]
[Result "1/2-1/2"]
[ECO "D30"]
[WhiteElo "2335"]
[BlackElo "2152"]
[Annotator "RC"]
[PlyCount "72"]
[EventDate "2024.03.28"]
[EventType "schev"]
[EventCountry "USA"]
[SourceTitle "playchess.com"]
[Source "ChessBase"]
[SourceQuality "1"]
[TimeControl "5400+30"]

1. d4 {[%emt 0:00:24]} d5 {[%emt 0:06:23]} 2. Nf3 {[%emt 0:00:36]} Nf6 {[%emt 0:00:08]} 3. e3 {[%emt 0:00:06]} e6 {[%emt 0:00:25]} 4. c4 {[%emt 0:00:30]} Be7 {[%emt 0:00:43]} 5. Bd3 {[%emt 0:01:39]} dxc4 {[%emt 0:00:46]} 6. Bxc4 {[%emt 0:00:09]} a6 {[%emt 0:00:12]} 7. O-O {[%emt 0:02:59]} O-O {[%emt 0:01:11]} 8. a3 {[%emt 0:03:44]} b5 {[%emt 0:03:05]} 9. Bd3 {[%emt 0:02:40]} c5 {[%emt 0:07:25]} 10. dxc5 {[%emt 0:06:54]} Bxc5 {[%emt 0:01:40]} 11. b4 {[%emt 0:00:46]} Bb6 {[%emt 0:03:54]} 12. Bb2 {[%emt 0:05:34]} Bb7 {[%emt 0:02:33]} 13. Nc3 {[%emt 0:04:18]} Qe7 {[%emt 0:03:57]} 14. Qe2 {[%emt 0:10:44]} Rd8 {[%emt 0:05:11]} 15. Rfd1 {[%emt 0:03:29]} Nbd7 {[%emt 0:03:30]} 16. a4 {[%emt 0:07:55]} Qxb4 {[%emt 0:08:19]} 17. axb5 {[%emt 0:06:44]} Bxf3 {[%emt 0:13:07]} 18. gxf3 {[%emt 0:01:11]} Qh4 {[%emt 0:00:16]} 19. Ne4 {[%emt 0:09:16]} axb5 {[%emt 0:01:09]} 20. Bxb5 {[%emt 0:08:26]} Nxe4 {[%emt 0:04:50]} 21. fxe4 {[%emt 0:07:01]} Nf6 {[%emt 0:02:43]} 22. Rxa8 {[%emt 0:06:55]} Rxa8 {[%emt 0:00:10]} 23. Qf3 {[%emt 0:01:17]} Nxe4 {[%emt 0:09:31]} 24. Qg2 {[%emt 0:03:41]} Qg5 {[%emt 0:00:31]} 25. Bc6 {[%emt 0:00:42]} Qxg2+ {[%emt 0:00:08]} 26. Kxg2 {[%emt 0:00:03]} Ra2 {[%emt 0:00:06]} 27. Bxe4 {[%emt 0:04:02]} Rxb2 {[%emt 0:00:06]} 28. Rb1 {[%emt 0:00:07]} Rxb1 {[%emt 0:00:16]} 29. Bxb1 {[%emt 0:00:09]} h5 {[%emt 0:00:08]} 30. h3 {[%emt 0:00:05]} g5 {[%emt 0:00:06]} 31. Bd3 {[%emt 0:00:12]} Kg7 {[%emt 0:00:07]} 32. Be2 {[%emt 0:00:06]} Kg6 {[%emt 0:00:07]} 33. Bc4 {[%emt 0:00:10]} g4 {[%emt 0:00:10]} 34. hxg4 {[%emt 0:00:05]} hxg4 {[%emt 0:00:05]} 35. Bb3 {[%emt 0:00:10]} Kg5 {[%emt 0:00:08]} 36. Bc4 {[%emt 0:00:12]} Bc7 {[%emt 0:00:15]} 1/2-1/2

[Event "1000GM Spring Break Schev-A 2024"]
[Site "San Jose"]
[Date "2024.04.01"]
[Round "5.1"]
[White "Rajaram, Rohan"]
[Black "Zuluaga Mancilla, Cesar"]
[Result "0-1"]
[ECO "E09"]
[WhiteElo "2198"]
[BlackElo "2217"]
[Annotator "RC"]
[PlyCount "120"]
[EventDate "2024.03.28"]
[EventType "schev"]
[EventCountry "USA"]
[SourceTitle "playchess.com"]
[Source "ChessBase"]
[SourceQuality "1"]
[TimeControl "5400+30"]

1. d4 {[%emt 0:04:41]} Nf6 {[%emt 0:01:41]} 2. c4 {[%emt 1:26:49]} e6 {[%emt 0:00:27]} 3. g3 {[%emt 0:00:00]} d5 {[%emt 0:00:45]} 4. Bg2 {[%emt 0:00:00]} Be7 {[%emt 0:00:04]} 5. Nf3 {[%emt 0:00:00]} O-O {[%emt 0:00:07]} 6. O-O {[%emt 0:00:00]} c6 {[%emt 0:01:11]} 7. Qc2 {[%emt 0:00:00]} b6 {[%emt 0:01:59]} 8. Nbd2 {[%emt 0:00:00]} Bb7 {[%emt 0:00:08]} 9. e4 {[%emt 0:00:00]} Nbd7 {[%emt 0:03:55]} 10. Rd1 {[%emt 0:00:00]} Qc8 {[%emt 0:04:51]} 11. e5 {[%emt 0:00:00]} Ne8 {[%emt 0:03:43]} 12. b3 c5 {[%emt 1:17:39]} 13. Ba3 {[%emt 0:00:00]} Nc7 {[%emt 0:00:00]} 14. Rac1 {[%emt 0:00:00]} Qd8 {[%emt 0:00:00]} 15. Bb2 {[%emt 0:00:00]} Rc8 {[%emt 0:00:00]} 16. Nf1 {[%emt 0:00:00]} cxd4 {[%emt 0:00:00]} 17. Nxd4 {[%emt 0:00:00]} Qe8 {[%emt 0:00:00]} 18. Qe2 {[%emt 0:00:00]} Nc5 {[%emt 0:00:00]} 19. Ne3 {[%emt 0:00:00]} dxc4 {[%emt 0:00:00]} 20. Bxb7 {[%emt 0:00:00]} Nxb7 {[%emt 0:00:00]} 21. Rxc4 {[%emt 0:00:00]} Na5 {[%emt 0:00:00]} 22. Rc2 {[%emt 0:00:00]} Bc5 {[%emt 0:00:00]} 23. Rdc1 {[%emt 0:00:00]} Qd7 {[%emt 0:00:00]} 24. Qg4 {[%emt 0:00:00]} Rfd8 {[%emt 0:06:00]} 25. Rd2 Nd5 26. Nxd5 Qxd5 27. Rcd1 Bxd4 28. Rxd4 Qa8 29. b4 Rxd4 30. Qxd4 Nc6 31. Qe4 Ne7 32. Qd3 Qd5 33. Qb1 Qb5 {[%emt 0:00:00]} 34. Qc2 {[%emt 0:00:00]} h5 {[%emt 0:00:00]} 35. Qe4 {[%emt 0:01:33]} Nd5 {[%emt 0:00:00]} 36. a3 {[%emt 0:00:05]} Qa4 {[%emt 0:00:00]} 37. Qd3 {[%emt 0:01:21]} Qc2 {[%emt 0:00:00]} 38. Rd2 {[%emt 0:01:36]} Qxd3 {[%emt 0:00:29]} 39. Rxd3 {[%emt 0:00:01]} Rc2 {[%emt 0:00:06]} 40. Bd4 {[%emt 0:00:11]} a6 {[%emt 0:00:52]} 41. h4 {[%emt 0:01:56]} Kf8 {[%emt 0:02:59]} 42. Kf1 {[%emt 0:01:14]} Kg8 {[%emt 0:00:22]} 43. Kg2 {[%emt 0:00:54]} Kh7 {[%emt 0:00:05]} 44. Kf3 {[%emt 0:00:48]} Kg6 {[%emt 0:00:48]} 45. Ke4 {[%emt 0:02:05]} Rc4 {[%emt 0:00:30]} 46. Rd2 {[%emt 0:00:30]} b5 {[%emt 0:00:30]} 47. f4 {[%emt 0:00:30]} Ne7 {[%emt 0:00:30]} 48. Kd3 {[%emt 0:00:30]} Kf5 {[%emt 0:00:30]} 49. Ke3 {[%emt 0:00:30]} Kg4 {[%emt 0:00:30]} 50. Bc5 {[%emt 0:00:30]} Nd5+ {[%emt 0:00:30]} 51. Kf2 {[%emt 0:00:30]} Rc3 {[%emt 0:00:30]} 52. a4 {[%emt 0:00:30]} Rf3+ {[%emt 0:00:30]} 53. Ke2 {[%emt 0:00:30]} Rxg3 {[%emt 0:00:30]} 54. axb5 {[%emt 0:00:30]} axb5 {[%emt 0:00:30]} 55. Bf2 {[%emt 0:00:30]} Rb3 {[%emt 0:00:30]} 56. Bc5 {[%emt 0:00:30]} Nxf4+ {[%emt 0:00:30]} 57. Kf1 {[%emt 0:00:30]} Kf3 {[%emt 0:00:30]} 58. Rf2+ {[%emt 0:00:30]} Kg3 {[%emt 0:00:30]} 59. Kg1 {[%emt 0:00:30]} Nh3+ {[%emt 0:00:30]} 60. Kh1 {[%emt 0:00:30]} Rb1+ {[%emt 0:00:30]} 0-1

[Event "1000GM Spring Break Schev-A 2024"]
[Site "San Jose"]
[Date "2024.04.01"]
[Round "5.2"]
[White "Garcia Guerrero, Isaac Antonio"]
[Black "Sivakumar, Shaashwath"]
[Result "0-1"]
[ECO "D23"]
[WhiteElo "2300"]
[BlackElo "2277"]
[Annotator "RC"]
[PlyCount "96"]
[EventDate "2024.03.28"]
[EventType "schev"]
[EventCountry "USA"]
[SourceTitle "playchess.com"]
[Source "ChessBase"]
[SourceQuality "1"]
[TimeControl "5400+30"]

1. d4 {[%emt 0:09:16]} d5 {[%emt 0:00:10]} 2. Nf3 {[%emt 0:00:31]} Nf6 {[%emt 0:00:05]} 3. c4 {[%emt 0:02:32]} c6 {[%emt 0:00:10]} 4. Qc2 {[%emt 0:00:15]} dxc4 {[%emt 0:00:31]} 5. Qxc4 {[%emt 0:00:06]} Bg4 {[%emt 0:00:22]} 6. Nc3 {[%emt 0:04:43]} e6 7. e3 {[%emt 1:16:37]} Nbd7 {[%emt 1:32:42]} 8. Be2 {[%emt 0:00:30]} Be7 {[%emt 0:00:30]} 9. O-O {[%emt 0:00:30]} O-O {[%emt 0:00:30]} 10. Rd1 {[%emt 0:00:30]} Qb8 {[%emt 0:00:30]} 11. h3 {[%emt 0:00:00]} Bh5 12. Bd2 {[%emt 0:01:00]} b5 {[%emt 0:01:00]} 13. Qxc6 a6 14. Ne5 Nxe5 15. dxe5 {[%emt 0:00:00]} Rc8 {[%emt 0:00:00]} 16. Qxc8+ Qxc8 17. exf6 {[%emt 0:00:00]} Bxe2 {[%emt 0:02:30]} 18. Nxe2 {[%emt 0:00:00]} Bxf6 {[%emt 0:00:00]} 19. Rac1 {[%emt 0:00:00]} Qb7 {[%emt 0:01:00]} 20. Bc3 {[%emt 0:00:00]} Bxc3 {[%emt 0:00:00]} 21. Rxc3 {[%emt 0:00:00]} Rc8 {[%emt 0:00:00]} 22. Rcd3 {[%emt 0:00:00]} g6 {[%emt 0:00:00]} 23. R1d2 {[%emt 0:00:00]} Kg7 {[%emt 0:00:00]} 24. f3 {[%emt 0:00:00]} Rc7 {[%emt 0:00:00]} 25. Kf2 {[%emt 0:00:00]} b4 {[%emt 0:00:00]} 26. Nf4 {[%emt 0:00:00]} Qb5 {[%emt 0:00:00]} 27. h4 {[%emt 0:00:00]} e5 {[%emt 0:00:00]} 28. Nd5 {[%emt 0:00:00]} Rc1 {[%emt 0:00:00]} 29. e4 {[%emt 0:00:00]} Ra1 {[%emt 0:00:00]} 30. Kg3 {[%emt 0:00:00]} Rxa2 {[%emt 0:00:00]} 31. Nc7 {[%emt 0:00:00]} Qc6 {[%emt 0:06:00]} 32. Rd7 {[%emt 0:00:00]} Rxb2 {[%emt 0:00:00]} 33. Rxb2 {[%emt 0:00:00]} Qxd7 {[%emt 0:00:00]} 34. Nxa6 {[%emt 0:00:00]} Qb5 {[%emt 0:00:00]} 35. Nxb4 {[%emt 0:00:00]} f5 {[%emt 0:02:00]} 36. exf5 {[%emt 0:01:22]} gxf5 {[%emt 0:00:00]} 37. Kh3 {[%emt 0:01:09]} e4 {[%emt 0:00:00]} 38. fxe4 {[%emt 0:01:17]} fxe4 {[%emt 0:00:00]} 39. Rb3 {[%emt 0:03:22]} Qc4 {[%emt 0:00:00]} 40. Rb1 {[%emt 0:00:56]} e3 {[%emt 0:00:00]} 41. Kg3 {[%emt 0:00:10]} Qe2 {[%emt 0:00:00]} 42. Rc1 {[%emt 0:02:20]} h5 {[%emt 0:00:00]} 43. Kh2 {[%emt 0:02:45]} Qd2 {[%emt 0:00:00]} 44. Rc7+ {[%emt 0:00:34]} Kf6 {[%emt 0:00:00]} 45. Rc6+ {[%emt 0:00:01]} Kf5 {[%emt 0:00:00]} 46. Nc2 {[%emt 0:03:04]} e2 {[%emt 0:05:30]} 47. Rc5+ {[%emt 0:00:00]} Ke4 {[%emt 0:00:00]} 48. Rc8 {[%emt 0:00:25]} Kd3 {[%emt 0:00:00]} 0-1